bitfinex/quotes_BTCUSD_20240908
["timestamp","ask_amount","ask_price","bid_price","bid_amount"]
[1725754633065,0.000815,54275.0,54274.0,1.61255]
[1725754633307,0.000815,54275.0,54274.0,1.63555]
[1725754633758,0.000815,54275.0,54274.0,1.62155]
[1725754634025,0.000815,54275.0,54274.0,1.63555]
[1725754634249,0.000815,54275.0,54274.0,1.64955]
[1725754634480,0.000815,54275.0,54274.0,1.63555]
[1725754634723,0.000815,54275.0,54274.0,1.64955]
[1725754635171,0.000815,54275.0,54274.0,1.63555]
[1725754635626,0.000815,54275.0,54274.0,1.64955]
[1725754638152,0.000815,54275.0,54274.0,1.63555]
[1725754638656,0.000815,54275.0,54274.0,1.64955]
[1725754639118,0.000815,54275.0,54274.0,1.63555]
[1725754640055,0.000815,54275.0,54274.0,1.64955]
[1725754642154,0.000815,54275.0,54274.0,1.64755]
[1725754642375,0.000815,54275.0,54274.0,1.64955]
[1725754643992,0.000815,54275.0,54274.0,2.01255]
[1725754644228,0.000815,54275.0,54274.0,2.38105]
[1725754644450,0.000815,54275.0,54274.0,2.01805]
[1725754644941,0.000815,54275.0,54274.0,2.01605]
[1725754645171,0.000815,54275.0,54274.0,2.01805]
[1725754651523,0.000815,54275.0,54274.0,3.29255]
[1725754651989,0.000815,54275.0,54274.0,3.32325]
[1725754652220,0.000815,54275.0,54274.0,1.21438]
[1725754653383,0.000815,54275.0,54274.0,1.23738]
[1725754653823,0.000815,54275.0,54274.0,1.60588]
[1725754654749,0.286361,54275.0,54274.0,0.52963]
[1725754654980,0.286361,54275.0,54274.0,0.02963]
[1725754654981,1.1248865,54275.0,54274.0,0.02963]
[1725754655243,1.50963867,54275.0,54274.0,0.02963]
[1725754655737,1.50963867,54275.0,54274.0,0.00163]
[1725754655955,1.50963867,54275.0,54274.0,0.01563]
[1725754655956,1.40809917,54275.0,54274.0,0.01563]
[1725754656640,1.40809917,54275.0,54274.0,0.02363]
[1725754657124,1.40809917,54275.0,54274.0,0.01563]
[1725754657535,1.40809917,54275.0,54274.0,0.00163]
[1725754657783,1.40809917,54275.0,54274.0,0.00963]
[1725754658683,1.40809917,54275.0,54274.0,0.01263]
[1725754658900,1.40809917,54275.0,54274.0,0.02263]
[1725754660911,1.03960617,54275.0,54274.0,0.02263]
[1725754661558,1.03960617,54275.0,54274.0,0.01163]
[1725754661764,1.03960617,54275.0,54274.0,0.00163]
[1725754661970,1.03960617,54275.0,54274.0,0.02463]
[1725754662180,1.02040617,54275.0,54274.0,0.02463]
[1725754663542,0.56981317,54275.0,54274.0,0.02463]
[1725754664456,0.01707417,54275.0,54274.0,0.6491695]
[1725754664688,0.01707417,54275.0,54274.0,0.9334195]
[1725754665842,0.000815,54275.0,54274.0,0.9334195]
[1725754666278,0.000815,54275.0,54274.0,0.7491695]
[1725754667364,0.20167244,54275.0,54274.0,0.64763]
[1725754668015,0.01742644,54275.0,54274.0,0.64763]
[1725754668475,0.01742644,54275.0,54274.0,0.64963]
[1725754669557,0.01742644,54275.0,54274.0,0.83388]
[1725754669784,0.01742644,54275.0,54274.0,0.64963]
[1725754670631,0.20167244,54275.0,54274.0,0.64963]
[1725754671074,0.20167244,54275.0,54274.0,0.64763]
[1725754671296,0.28427244,54275.0,54274.0,0.64763]
[1725754671969,0.20167244,54275.0,54274.0,0.64763]
[1725754673945,0.57016544,54275.0,54274.0,0.64763]
[1725754674830,0.57016544,54275.0,54274.0,0.62463]
[1725754675080,0.93865844,54275.0,54274.0,0.62463]
[1725754675290,1.30715144,54275.0,54274.0,0.62463]
[1725754677335,1.30715144,54275.0,54274.0,0.61963]
[1725754680945,1.32635144,54275.0,54274.0,0.11963]
[1725754681188,2.18313022,54275.0,54274.0,0.01963]
[1725754681413,2.20242036,54275.0,54274.0,0.01963]
[1725754682073,2.20242036,54275.0,54253.0,0.5]
[1725754682074,1.290226,54254.0,54253.0,0.5]
[1725754682532,1.30751222,54254.0,54253.0,0.5]
[1725754682767,0.93887622,54254.0,54253.0,0.5]
[1725754684251,0.93987622,54254.0,54253.0,0.612]
[1725754684466,0.94087622,54254.0,54253.0,0.626]
[1725754684724,0.93887622,54254.0,54253.0,0.6]
[1725754684936,0.93987622,54254.0,54253.0,0.614]
[1725754685154,0.94087622,54254.0,54253.0,0.611]
[1725754685822,0.57224022,54254.0,54253.0,0.611]
[1725754686056,0.57224022,54254.0,54253.0,0.6763]
[1725754686271,0.57224022,54254.0,54253.0,0.6903]
[1725754686272,0.57324022,54254.0,54253.0,0.6903]
[1725754686479,0.57224022,54254.0,54253.0,0.6793]
[1725754686695,0.554954,54254.0,54253.0,0.6793]
[1725754686912,0.555954,54254.0,54253.0,0.6913]
[1725754687119,0.57307386,54254.0,54253.0,0.6913]
[1725754687361,0.01911986,54254.0,54253.0,0.7779]
[1725754687579,0.01911986,54254.0,54253.0,0.7679]
[1725754687580,0.01711986,54254.0,54253.0,0.7679]
[1725754687840,0.002,54254.0,54253.0,0.7729]
[1725754688060,0.01911986,54254.0,54253.0,0.7679]
[1725754688273,0.01811986,54254.0,54253.0,0.7639]
[1725754688486,0.01811986,54254.0,54253.0,0.7729]
[1725754688487,0.02011986,54254.0,54253.0,0.7729]
[1725754688699,0.02011986,54254.0,54253.0,0.77453]
[1725754689440,0.02011986,54254.0,54253.0,0.958851]
[1725754689902,0.003,54254.0,54253.0,0.958851]
[1725754690324,0.02009932,54254.0,54253.0,0.958851]
[1725754694954,0.02009932,54254.0,54253.0,0.69893]
[1725754695397,0.368619,54257.0,54253.0,0.69893]
[1725754695398,0.31983317,54257.0,54253.0,0.69893]
[1725754695636,0.368588,54262.0,54259.0,0.5]
[1725754695854,0.184294,54261.0,54260.0,0.1]
[1725754696078,1.290058,54261.0,54260.0,0.1]
[1725754697330,1.309258,54261.0,54260.0,0.108]
[1725754697532,1.310258,54261.0,54260.0,0.108]
[1725754698310,1.311258,54261.0,54260.0,0.115]
[1725754699153,1.40023756,54261.0,54260.0,0.115]
[1725754700256,1.40023756,54261.0,54260.0,0.11663]
[1725754705029,1.38103756,54261.0,54260.0,0.11663]
[1725754705911,1.30403756,54261.0,54260.0,0.11663]
[1725754710286,1.32323756,54261.0,54260.0,0.11663]
[1725754710745,1.32323756,54261.0,54260.0,0.01663]
[1725754711672,1.95754419,54261.0,54260.0,0.01663]
[1725754712147,1.95835919,54261.0,54260.0,0.01663]
[1725754713669,1.94667262,54261.0,54260.0,0.01663]
[1725754714091,2.03556821,54261.0,54260.0,0.01663]
[1725754714831,2.01904171,54261.0,54260.0,0.01663]
[1725754717990,1.9901549,54261.0,54260.0,0.01663]
[1725754722435,2.01904149,54261.0,54260.0,0.01663]
[1725754723137,1.91924149,54261.0,54260.0,0.01663]
[1725754723946,1.72881641,54261.0,54260.0,0.01663]
[1725754725006,1.69992982,54261.0,54260.0,0.01663]
[1725754731388,1.72881594,54261.0,54260.0,0.01663]
[1725754734940,1.69992982,54261.0,54260.0,0.01663]
[1725754740374,1.7987481,54261.0,54260.0,0.01663]
[1725754740580,1.81527462,54261.0,54260.0,0.01663]
[1725754741420,1.84416172,54261.0,54260.0,0.01663]
[1725754742323,1.84404344,54261.0,54260.0,0.01663]
[1725754742526,1.80831692,54261.0,54260.0,0.01663]
[1725754742728,1.72881692,54261.0,54260.0,0.01663]
[1725754744955,1.69992982,54261.0,54260.0,0.01663]
[1725754749604,1.71645635,54261.0,54260.0,0.01663]
[1725754751029,1.69992982,54261.0,54260.0,0.01663]
[1725754757620,1.69992982,54261.0,54260.0,0.08173]
[1725754777677,1.80112982,54261.0,54260.0,0.01663]
[1725754777929,1.85652538,54261.0,54260.0,0.01663]
[1725754778163,1.80112982,54261.0,54260.0,0.01663]
[1725754778416,1.86502316,54261.0,54260.0,0.01663]
[1725754778845,1.52194526,54261.0,54260.0,0.01663]
[1725754779321,1.70623926,54261.0,54260.0,0.01663]
[1725754779753,1.80778279,54261.0,54260.0,0.01663]
[1725754782664,1.86318082,54261.0,54260.0,0.01663]
[1725754783211,1.80778279,54261.0,54260.0,0.01663]
[1725754784544,1.72578279,54261.0,54260.0,0.01663]
[1725754785229,1.72578279,54261.0,54244.0,0.00163]
[1725754785230,0.116,54257.0,54244.0,0.00163]
[1725754785473,0.921742,54245.0,54244.0,0.00163]
[1725754785724,1.290439,54245.0,54244.0,0.00163]
[1725754785945,1.33094985,54245.0,54244.0,0.00163]
[1725754786396,1.33094985,54245.0,54244.0,0.00263]
[1725754786614,1.33094985,54245.0,54244.0,0.00363]
[1725754786841,1.33094985,54245.0,54244.0,0.00263]
[1725754787072,1.33094985,54245.0,54244.0,0.08813]
[1725754787073,0.96225285,54245.0,54244.0,0.08813]
[1725754787534,0.96325285,54245.0,54244.0,0.09313]
[1725754787782,0.93436025,54245.0,54244.0,0.08813]
[1725754788006,0.93336025,54245.0,54244.0,0.08813]
[1725754788211,0.93436025,54245.0,54244.0,0.15613]
[1725754788499,0.93436025,54245.0,54244.0,0.25613]
[1725754788966,0.93436025,54245.0,54244.0,0.25113]
[1725754789198,0.93536025,54245.0,54244.0,0.25413]
[1725754790837,1.30405725,54245.0,54244.0,0.25413]
[1725754791566,1.30405725,54245.0,54244.0,0.17263]
[1725754791787,1.30405725,54245.0,54244.0,0.07263]
[1725754794945,1.30405725,54245.0,54244.0,0.01263]
[1725754797230,1.67275425,54245.0,54244.0,0.01263]
[1725754797448,1.30405725,54245.0,54244.0,0.01263]
[1725754797890,1.67275425,54245.0,54244.0,0.01263]
[1725754803426,1.30405725,54245.0,54244.0,0.01263]
[1725754803876,1.67275425,54245.0,54244.0,0.01263]
[1725754804066,1.30405725,54245.0,54244.0,0.01263]
[1725754804500,1.67275425,54245.0,54244.0,0.07653]
[1725754805213,1.30405725,54245.0,54244.0,0.07653]
[1725754805672,1.67275425,54245.0,54244.0,0.07653]
[1725754807352,1.67275425,54245.0,54244.0,0.01263]
[1725754813882,2.04145125,54245.0,54244.0,0.01263]
[1725754814133,1.67275425,54245.0,54244.0,0.01263]
[1725754814356,1.70165259,54245.0,54244.0,0.01263]
[1725754814587,2.07034959,54245.0,54244.0,0.01263]
[1725754814823,1.70165259,54245.0,54244.0,0.01263]
[1725754815750,1.70165259,54245.0,54244.0,0.07623]
[1725754815979,1.80319612,54245.0,54244.0,0.07623]
[1725754817385,1.80319612,54245.0,54244.0,0.01263]
[1725754817846,2.18841971,54245.0,54244.0,0.01263]
[1725754818070,1.81972271,54245.0,54244.0,0.01263]
[1725754818525,2.18841971,54245.0,54244.0,0.01263]
[1725754818748,1.79082437,54245.0,54244.0,0.01263]
[1725754820407,1.77429778,54245.0,54244.0,0.01263]
[1725754820883,1.77429778,54245.0,54244.0,0.07803]
[1725754829354,1.80319466,54245.0,54244.0,0.07803]
[1725754829873,1.70165113,54245.0,54244.0,0.07803]
[1725754830103,0.93536025,54245.0,54244.0,0.15503]
[1725754830329,0.93536025,54245.0,54244.0,0.25503]
[1725754830784,0.01361825,54245.0,54244.0,0.25503]
[1725754831016,0.01361825,54245.0,54244.0,0.27803]
[1725754831468,0.19796625,54245.0,54244.0,0.27803]
[1725754831953,0.20869147,54245.0,54244.0,0.27803]
[1725754832188,0.20769147,54245.0,54244.0,0.27503]
[1725754832638,0.20669147,54245.0,54244.0,0.26703]
[1725754833531,0.20769147,54245.0,54244.0,0.28103]
[1725754833763,0.20669147,54245.0,54244.0,0.26703]
[1725754833987,0.20769147,54245.0,54244.0,0.27303]
[1725754834208,0.20869147,54245.0,54244.0,0.28703]
[1725754834461,0.02434347,54245.0,54244.0,0.28703]
[1725754834682,0.02434347,54245.0,54244.0,0.465382]
[1725754834683,0.02334347,54245.0,54244.0,0.465382]
[1725754834904,0.02434347,54245.0,54244.0,0.479382]
[1725754835344,0.02434347,54245.0,54244.0,0.29503]
[1725754835854,0.02434347,54245.0,54244.0,0.29703]
[1725754837860,0.02434347,54245.0,54244.0,0.481382]
[1725754838686,0.02434347,54245.0,54244.0,0.29503]
[1725754843224,0.368664,54250.0,54248.0,0.0661]
[1725754843225,0.184335,54249.0,54248.0,0.0661]
[1725754843535,0.553005,54249.0,54248.0,0.1661]
[1725754844471,0.554005,54249.0,54248.0,0.1781]
[1725754845070,0.555005,54249.0,54248.0,0.1901]
[1725754846771,0.57367602,54249.0,54248.0,0.1901]
[1725754850047,0.57367602,54249.0,54248.0,0.2732]
[1725754850264,0.20500602,54249.0,54248.0,0.2732]
[1725754850731,0.02067102,54249.0,54248.0,0.849215]
[1725754850948,0.02067102,54249.0,54248.0,0.859215]
[1725754851144,0.002,54249.0,54248.0,0.859215]
[1725754851407,0.552924,54257.0,54256.0,0.1492]
[1725754851623,0.92154,54257.0,54256.0,0.1492]
[1725754851853,0.94085705,54257.0,54256.0,0.1492]
[1725754853604,0.94085705,54257.0,54256.0,0.0691]
[1725754853605,0.57224105,54257.0,54256.0,0.0691]
[1725754854035,0.57224105,54257.0,54256.0,0.0721]
[1725754854276,0.94085705,54257.0,54256.0,0.0721]
[1725754854746,0.57224105,54257.0,54256.0,0.0721]
[1725754855431,0.94085705,54257.0,54256.0,0.0721]
[1725754862137,1.30947305,54257.0,54256.0,0.0678]
[1725754862345,0.94085705,54257.0,54256.0,0.0678]
[1725754863211,1.30947305,54257.0,54256.0,0.0678]
[1725754864139,1.31028805,54257.0,54256.0,0.0678]
[1725754867951,0.94167205,54257.0,54256.0,0.0678]
[1725754868646,1.31028805,54257.0,54256.0,0.0678]
[1725754868885,0.94167205,54257.0,54256.0,0.0678]
[1725754871405,0.02013205,54257.0,54256.0,0.1496]
[1725754871631,0.02013205,54257.0,54256.0,1.20784062]
[1725754871838,0.000815,54257.0,54256.0,1.61343262]
[1725754872062,0.000815,54257.0,54256.0,1.69601428]
[1725754872275,0.000815,54261.0,54260.0,1.062892]
[1725754872507,0.000815,54261.0,54260.0,2.45663053]
[1725754872720,0.000815,54261.0,54260.0,2.82522553]
[1725754873191,0.000815,54261.0,54260.0,2.82722553]
[1725754873840,0.001815,54261.0,54260.0,2.84122553]
[1725754874357,0.002815,54261.0,54260.0,2.85522553]
[1725754875985,0.002815,54261.0,54260.0,2.385087]
[1725754881049,0.002815,54261.0,54260.0,2.748087]
[1725754881291,0.002815,54261.0,54260.0,2.377492]
[1725754881516,0.187109,54261.0,54260.0,1.8146]
[1725754881743,0.187109,54261.0,54260.0,0.8938]
[1725754882027,0.02234748,54261.0,54260.0,0.8708]
[1725754882247,0.20664148,54261.0,54260.0,0.8708]
[1725754882470,0.57522948,54261.0,54260.0,0.8708]
[1725754883590,1.41394901,54261.0,54260.0,0.028]
[1725754883805,1.50687544,54261.0,54260.0,0.028]
[1725754884465,1.50587544,54261.0,54260.0,0.014]
[1725754884913,1.53476012,54261.0,54260.0,0.014]
[1725754885371,1.290156,54257.0,54256.0,0.00163]
[1725754885574,1.39169953,54257.0,54256.0,0.00163]
[1725754885793,1.41117278,54257.0,54256.0,0.00163]
[1725754886014,1.30962925,54257.0,54256.0,0.00163]
[1725754886920,1.31162925,54257.0,54256.0,0.01363]
[1725754890251,1.79424525,54257.0,54256.0,0.01363]
[1725754892870,1.79436331,54257.0,54256.0,0.01363]
[1725754893327,1.82324979,54257.0,54256.0,0.01363]
[1725754899751,1.82406479,54257.0,54256.0,0.01363]
[1725754901300,1.78806479,54257.0,54256.0,0.01363]
[1725754901718,1.71006479,54257.0,54256.0,0.01363]
[1725754901927,1.70994673,54257.0,54256.0,0.01363]
[1725754902354,1.52563873,54257.0,54256.0,0.01363]
[1725754902775,1.70994673,54257.0,54256.0,0.01363]
[1725754902996,1.82364673,54257.0,54256.0,0.01363]
[1725754903206,1.83961674,54257.0,54256.0,0.01363]
[1725754904062,1.83861674,54257.0,54256.0,0.00763]
[1725754904268,1.73263095,54257.0,54256.0,0.00863]
[1725754904474,1.73163095,54257.0,54256.0,0.00263]
[1725754905057,1.73863095,54257.0,54256.0,0.00363]
[1725754905273,1.73163095,54257.0,54256.0,0.00263]
[1725754905689,1.73463095,54257.0,54256.0,0.00263]
[1725754905915,1.72663095,54257.0,54256.0,0.00163]
[1725754906123,1.72363095,54257.0,54256.0,0.00163]
[1725754906560,1.73163095,54257.0,54256.0,0.00263]
[1725754907611,1.72363095,54257.0,54256.0,0.00163]
[1725754908501,1.72363095,54257.0,54256.0,0.00363]
[1725754908934,1.72463095,54257.0,54256.0,0.00363]
[1725754909373,1.72363095,54257.0,54256.0,0.00363]
[1725754909586,1.72363095,54257.0,54256.0,0.00563]
[1725754912174,1.82520726,54257.0,54256.0,0.00563]
[1725754912423,1.82520726,54257.0,54256.0,0.00163]
[1725754912868,1.82720726,54257.0,54256.0,0.00163]
[1725754913081,1.82520726,54257.0,54256.0,0.00163]
[1725754913313,1.82620726,54257.0,54256.0,0.00163]
[1725754913523,1.82920726,54257.0,54256.0,0.00163]
[1725754914662,1.82920726,54257.0,54256.0,0.06213]
[1725754914663,1.71094673,54257.0,54256.0,0.06213]
[1725754914889,1.71394673,54257.0,54256.0,0.06213]
[1725754915512,1.71094673,54257.0,54256.0,0.06213]
[1725754915723,1.70794673,54257.0,54256.0,0.06213]
[1725754915933,1.70794673,54257.0,54256.0,0.06613]
[1725754916146,1.70794673,54257.0,54256.0,0.07013]
[1725754916376,1.70794673,54257.0,54256.0,0.06213]
[1725754916601,1.70794673,54257.0,54256.0,0.06613]
[1725754918039,1.70794673,54257.0,54256.0,0.07013]
[1725754918682,1.33933073,54257.0,54256.0,0.07013]
[1725754921135,1.52974088,54257.0,54256.0,0.00963]
[1725754921556,1.33933073,54257.0,54256.0,0.00963]
[1725754921761,1.33933073,54257.0,54256.0,0.00563]
[1725754921974,1.33933073,54257.0,54256.0,0.00163]
[1725754922100,1.33933073,54257.0,54256.0,0.00463]
[1725754922305,1.33933073,54257.0,54256.0,0.00763]
[1725754922507,1.70794673,54257.0,54256.0,0.00163]
[1725754922720,1.78734673,54257.0,54256.0,0.00163]
[1725754922928,1.78734673,54257.0,54256.0,0.00963]
[1725754922929,1.75846025,54257.0,54256.0,0.00963]
[1725754923751,1.75846025,54257.0,54256.0,0.00563]
[1725754924154,1.75846025,54257.0,54256.0,0.00663]
[1725754924366,1.75846025,54257.0,54256.0,0.00263]
[1725754924623,1.75846025,54257.0,54256.0,0.00463]
[1725754925067,1.75846025,54257.0,54256.0,0.00263]
[1725754925282,1.75846025,54257.0,54256.0,0.00363]
[1725754926369,1.78734972,54257.0,54256.0,0.00363]
[1725754927671,1.78734972,54257.0,54256.0,0.00263]
[1725754928327,1.81365372,54257.0,54256.0,0.00263]
[1725754928746,1.81381183,54257.0,54256.0,0.00263]
[1725754928965,1.81681183,54257.0,54256.0,0.00263]
[1725754929177,1.81681183,54257.0,54256.0,0.00163]
[1725754929407,1.84448763,54257.0,54256.0,0.00163]
[1725754929604,1.84548763,54257.0,54256.0,0.00163]
[1725754929805,1.84448763,54257.0,54256.0,0.00163]
[1725754930030,1.76508763,54257.0,54256.0,0.00163]
[1725754930236,1.76608763,54257.0,54256.0,0.00163]
[1725754930443,1.76308763,54257.0,54256.0,0.00163]
[1725754933471,1.68006025,54257.0,54256.0,0.00163]
[1725754933688,1.70894939,54257.0,54256.0,0.00163]
[1725754933916,1.82434939,54257.0,54256.0,0.00163]
[1725754934132,1.86510357,54257.0,54256.0,0.00163]
[1725754934988,1.82910357,54257.0,54256.0,0.00163]
[1725754935258,1.74970357,54257.0,54256.0,0.00163]
[1725754935467,1.86050586,54257.0,54256.0,0.00163]
[1725754936093,1.96207552,54257.0,54256.0,0.00163]
[1725754936301,1.96207552,54257.0,54256.0,0.06393]
[1725754936960,1.96207552,54257.0,54256.0,0.00163]
[1725754938583,1.92132134,54257.0,54256.0,0.00163]
[1725754939424,1.81051905,54257.0,54256.0,0.00163]
[1725754939624,1.89363233,54257.0,54256.0,0.00163]
[1725754940246,1.42344667,54257.0,54256.0,0.06563]
[1725754940477,0.94282825,54257.0,54256.0,0.06563]
[1725754942339,0.94182825,54257.0,54256.0,0.06563]
[1725754942926,0.94382825,54257.0,54256.0,0.07863]
[1725754943174,0.94282825,54257.0,54256.0,0.07263]
[1725754943297,0.94282825,54257.0,54256.0,0.07363]
[1725754943713,0.94382825,54257.0,54256.0,0.08163]
[1725754951789,1.31244425,54257.0,54256.0,0.08163]
[1725754952018,1.40510376,54257.0,54256.0,0.01763]
[1725754952219,1.48110376,54257.0,54256.0,0.01763]
[1725754952460,1.9051021,54257.0,54256.0,0.01763]
[1725754953765,1.8691021,54257.0,54256.0,0.01763]
[1725754953946,1.82834788,54257.0,54256.0,0.01763]
[1725754956086,1.85723662,54257.0,54256.0,0.01763]
[1725754957811,1.78123662,54257.0,54256.0,0.01763]
[1725754959792,1.80892779,54257.0,54256.0,0.01763]
[1725754965805,1.76533018,54257.0,54256.0,0.08403]
[1725754969342,1.76532931,54257.0,54256.0,0.08403]
[1725754973043,1.70994899,54257.0,54256.0,0.01763]
[1725754982392,1.70994899,54257.0,54256.0,0.08193]
[1725754982616,1.76533119,54257.0,54256.0,0.08193]
[1725754982835,1.70994899,54257.0,54256.0,0.08193]
[1725754985323,1.7258544,54257.0,54256.0,0.08193]
[1725754987269,1.78123533,54257.0,54256.0,0.08193]
[1725754987533,1.7258544,54257.0,54256.0,0.08193]
[1725754987988,1.78123747,54257.0,54256.0,0.08193]
[1725754988449,1.7258544,54257.0,54256.0,0.08193]
[1725754988879,1.70994899,54257.0,54256.0,0.08193]
[1725754989155,1.34133299,54257.0,54256.0,0.16253]
[1725754990468,0.97271699,54257.0,54256.0,0.16253]
[1725755001012,0.97271699,54257.0,54256.0,0.08193]
[1725755005304,0.94382825,54257.0,54256.0,0.08193]
[1725755006664,0.94382825,54257.0,54256.0,0.15893]
[1725755007375,0.02228825,54257.0,54256.0,0.343241]
[1725755007622,0.02228825,54257.0,54256.0,0.25893]
[1725755008089,0.20659625,54257.0,54256.0,0.25893]
[1725755008519,0.02228825,54257.0,54256.0,0.25893]
[1725755009417,0.20659625,54257.0,54256.0,0.25893]
[1725755010477,0.02228825,54257.0,54256.0,0.25893]
[1725755015381,0.02228825,54257.0,54256.0,0.443241]
[1725755015600,0.02228825,54257.0,54256.0,0.25893]
[1725755019241,0.02228825,54257.0,54256.0,0.443241]
[1725755022106,0.02228825,54257.0,54256.0,0.25893]
[1725755022552,0.02228825,54257.0,54256.0,0.443241]
[1725755023833,0.002815,54257.0,54256.0,0.443241]
[1725755024478,0.02050611,54257.0,54256.0,0.443241]
[1725755025739,0.000815,54261.0,54256.0,0.19463]
[1725755025964,0.184302,54259.0,54257.0,0.0613]
[1725755026169,0.184302,54259.0,54257.0,0.1613]
[1725755026370,0.184302,54259.0,54257.0,0.0613]
[1725755026575,0.184302,54259.0,54257.0,0.1613]
[1725755027362,0.184304,54258.0,54257.0,0.1613]
[1725755027790,0.921522,54258.0,54257.0,0.1613]
[1725755027994,0.921522,54258.0,54256.0,0.00463]
[1725755027995,0.552924,54257.0,54256.0,0.00763]
[1725755028368,0.5677309,54257.0,54256.0,0.00163]
[1725755028820,0.9363469,54257.0,54256.0,0.00163]
[1725755029469,0.9383469,54257.0,54256.0,0.01663]
[1725755033007,0.5697309,54257.0,54256.0,0.07793]
[1725755034729,0.2011149,54257.0,54256.0,0.07793]
[1725755037428,0.5697309,54257.0,54256.0,0.07793]
[1725755037647,0.2011149,54257.0,54256.0,0.07793]
[1725755044931,0.0168069,54257.0,54256.0,0.07793]
[1725755045299,0.2011149,54257.0,54256.0,0.07793]
[1725755045512,0.0168069,54257.0,54256.0,0.07793]
[1725755045960,0.2011149,54257.0,54256.0,0.07793]
[1725755048134,0.0168069,54257.0,54256.0,0.07793]
[1725755051324,0.0168069,54257.0,54256.0,0.837741]
[1725755051546,0.0168069,54257.0,54256.0,0.937741]
[1725755051761,0.0168069,54257.0,54256.0,0.77643]
[1725755052162,0.5706774,54257.0,54256.0,0.11663]
[1725755052400,0.93964141,54257.0,54256.0,0.11663]
[1725755052612,0.9383469,54257.0,54256.0,0.11663]
[1725755054156,0.9383469,54257.0,54256.0,0.01663]
[1725755054633,0.96585287,54257.0,54256.0,0.01663]
[1725755056314,0.9383469,54257.0,54256.0,0.01663]
[1725755058524,0.5697309,54257.0,54256.0,0.01663]
[1725755058764,0.5697309,54257.0,54256.0,0.07973]
[1725755060067,0.0168069,54257.0,54256.0,0.07973]
[1725755060292,0.0168069,54257.0,54256.0,0.364041]
[1725755060509,0.0168069,54257.0,54256.0,0.887041]
[1725755062091,0.27735002,54261.0,54257.0,0.061]
[1725755062326,0.184298,54260.0,54257.0,0.1]
[1725755062549,0.184298,54260.0,54258.0,0.061]
[1725755062991,0.184298,54260.0,54258.0,0.161]
[1725755064070,0.184298,54260.0,54258.0,0.065]
[1725755065218,0.27735002,54261.0,54258.0,0.065]
[1725755065219,0.184295,54261.0,54258.0,0.065]
[1725755065663,0.184281,54265.0,54261.0,0.264993]
[1725755065929,0.184281,54265.0,54263.0,0.061]
[1725755066156,0.02888522,54266.0,54263.0,0.061]
[1725755066370,0.21316422,54266.0,54263.0,0.061]
[1725755066827,0.184281,54265.0,54263.0,0.061]
[1725755067481,0.184281,54265.0,54263.0,0.066]
[1725755068368,0.02888522,54266.0,54265.0,0.18428]
[1725755068576,0.184244,54276.0,54273.0,0.0807]
[1725755068794,0.000815,54275.0,54274.0,0.24525]
[1725755069055,0.000815,54275.0,54274.0,0.71375]
[1725755069300,0.000815,54275.0,54274.0,1.08225]
[1725755069533,0.000815,54275.0,54274.0,1.60525]
[1725755070441,0.000815,54275.0,54274.0,1.25075]
[1725755071781,0.01360225,54275.0,54274.0,1.26475]
[1725755072256,0.01360225,54275.0,54274.0,0.689]
[1725755072465,0.21449303,54275.0,54274.0,0.689]
[1725755072671,0.22736483,54275.0,54274.0,0.689]
[1725755073773,0.22736483,54275.0,54274.0,0.189]
[1725755073955,0.22736483,54275.0,54274.0,0.089]
[1725755074204,0.22736483,54275.0,54274.0,0.189]
[1725755074642,0.21072005,54275.0,54274.0,0.189]
[1725755075229,0.21072005,54275.0,54274.0,0.089]
[1725755075878,0.21072005,54275.0,54274.0,0.189]
[1725755079412,0.57921305,54275.0,54274.0,0.189]
[1725755079872,0.21072005,54275.0,54274.0,0.189]
[1725755080944,0.57921305,54275.0,54274.0,0.189]
[1725755081599,0.21072005,54275.0,54274.0,0.189]
[1725755084122,0.57921305,54275.0,54274.0,0.189]
[1725755085197,0.21072005,54275.0,54274.0,0.189]
[1725755087753,0.57921305,54275.0,54274.0,0.189]
[1725755091782,0.94770605,54275.0,54274.0,0.128]
[1725755092003,1.76144627,54275.0,54274.0,0.028]
[1725755092217,1.8724245,54275.0,54274.0,0.028]
[1725755092432,1.84354627,54275.0,54274.0,0.028]
[1725755092895,1.84354627,54275.0,54263.0,0.0635]
[1725755092896,0.552852,54264.0,54263.0,0.0635]
[1725755093319,0.56686222,54264.0,54263.0,0.0635]
[1725755093539,0.93543022,54264.0,54263.0,0.0635]
[1725755095670,0.93543022,54264.0,54263.0,0.0705]
[1725755096106,0.56786222,54264.0,54263.0,0.0785]
[1725755097459,0.56786222,54264.0,54263.0,0.1785]
[1725755100566,0.01501022,54264.0,54263.0,0.1785]
[1725755100777,0.01501022,54264.0,54263.0,0.2595]
[1725755106160,0.01501022,54264.0,54263.0,0.443787]
[1725755106581,0.001,54264.0,54263.0,0.443787]
[1725755106782,0.01498114,54264.0,54263.0,0.443787]
[1725755106986,0.001,54264.0,54263.0,0.443787]
[1725755107191,0.01498114,54264.0,54263.0,0.443787]
[1725755107404,0.001,54264.0,54263.0,0.443787]
[1725755107589,0.01498114,54264.0,54263.0,0.443787]
[1725755107828,0.001,54264.0,54263.0,0.443787]
[1725755108067,0.01496788,54264.0,54263.0,0.466787]
[1725755108299,0.001,54264.0,54263.0,0.835362]
[1725755108504,0.001,54264.0,54263.0,1.203937]
[1725755108722,0.001,54264.0,54263.0,0.835362]
[1725755109594,0.01496126,54264.0,54263.0,0.835362]
[1725755109808,0.001,54264.0,54263.0,0.835362]
[1725755110021,0.01496126,54264.0,54263.0,0.835362]
[1725755110225,0.001,54264.0,54263.0,0.835362]
[1725755110430,0.01496126,54264.0,54263.0,0.835362]
[1725755110653,0.001,54264.0,54263.0,0.835362]
[1725755110879,0.01496126,54264.0,54263.0,0.835362]
[1725755111089,0.001,54264.0,54263.0,0.835362]
[1725755111306,0.01496126,54264.0,54263.0,0.835362]
[1725755111499,0.001,54264.0,54263.0,0.835362]
[1725755111784,0.01496126,54264.0,54263.0,0.835362]
[1725755112430,0.01496126,54264.0,54263.0,0.1785]